fUSD/lending_fUSD_20250214
["ID","MTS","AMOUNT","RATE_DAILY","PERIOD"]
[353117835,1739566272033,-500.0,0.00013863,2]
[353117836,1739566272043,-2232.76,0.00013863,2]
[353117837,1739566272053,-643.31,0.00013863,2]
[353117838,1739566272064,-539.61,0.00013863,2]
[353117839,1739566272074,-1959.93,0.00013863,2]
[353117840,1739566272084,-607.81,0.00013863,2]
[353117841,1739566272093,-500.0,0.00013863,2]
[353117842,1739566272104,-1505.1,0.00013863,2]
[353117843,1739566272114,-8241.8,0.00013863,2]
[353117844,1739566272125,-1325.07,0.00013863,2]
[353117845,1739566272135,-500.0,0.00013863,2]
[353117846,1739566272145,-886.49,0.00013863,2]
[353117847,1739566272155,-500.0,0.00013863,2]
[353117848,1739566272164,-1367.66,0.00013863,2]
[353117849,1739566272174,-500.0,0.00013863,2]
[353117850,1739566272184,-731.34,0.00013863,2]
[353117851,1739566272198,-500.0,0.00013863,2]
[353117852,1739566272208,-500.0,0.00013863,2]
[353117853,1739566272218,-796.57,0.00013863,2]
[353117854,1739566272229,-500.0,0.00013863,2]
[353117855,1739566272239,-500.0,0.00013863,2]
[353117856,1739566272332,-719.16,0.00013863,2]
[353117857,1739566272343,-660.92,0.00013863,2]
[353117858,1739566272354,-2622.2,0.00013863,2]
[353117859,1739566272363,-899.83,0.00013863,2]
[353117860,1739566272374,-500.0,0.00013863,2]
[353117861,1739566272384,-503.69106628,0.00013863,2]
[353117862,1739566272394,-3674.69,0.00013863,2]
[353117863,1739566272404,-2330.47,0.00013863,2]
[353117864,1739566272414,-1508.59,0.00013863,2]
[353117865,1739566272424,-860.46,0.00013863,2]
[353117866,1739566272434,-4851.48,0.00013863,2]
[353117867,1739566272444,-3084.92,0.00013863,2]
[353117868,1739566272454,-500.0,0.00013863,2]
[353117869,1739566272464,-500.0,0.00013863,2]
[353117870,1739566272474,-667.69,0.00013863,2]
[353117871,1739566272484,-1520.32,0.00013863,2]
[353117872,1739566272495,-569.14,0.00013863,2]
[353117873,1739566272505,-500.0,0.00013863,2]
[353117874,1739566272514,-883.89,0.00013863,2]
[353117875,1739566272525,-1295.15,0.00013863,2]
[353117876,1739566272536,-1976.66,0.00013863,2]
[353117877,1739566272547,-500.0,0.00013863,2]
[353117878,1739566272562,-1194.78,0.00013863,2]
[353117879,1739566272572,-1135.37,0.00013863,2]
[353117880,1739566272582,-500.0,0.00013863,2]
[353117881,1739566272592,-3133.2,0.00013863,2]
[353117882,1739566272602,-2227.17,0.00013863,2]
[353117883,1739566272612,-500.0,0.00013863,2]
[353117884,1739566272621,-380.8398463,0.00013863,2]
[353117885,1739566272631,-500.0,0.00013863,2]
[353117886,1739566272641,-506.61945016,0.00013863,2]
[353117887,1739566272650,-1929.53,0.00013863,2]
[353117888,1739566272659,-802.32,0.00013863,2]
[353117889,1739566272669,-519.05,0.00013863,2]
[353117890,1739566272679,-500.0,0.00013863,2]
[353117891,1739566272689,-1861.87,0.00013863,2]
[353117892,1739566272698,-1248.93,0.00013863,2]
[353117893,1739566272708,-688.14,0.00013863,2]
[353117894,1739566272718,-415.48131057,0.00013863,2]
[353117895,1739566272729,-500.0,0.00013863,2]
[353117896,1739566272739,-500.0,0.00013863,2]
[353117897,1739566272749,-500.0,0.00013863,2]
[353117898,1739566272759,-662.93,0.00013863,2]
[353117899,1739566272769,-684.97,0.00013863,2]
[353117900,1739566272779,-517.09,0.00013863,2]
[353117901,1739566272789,-500.0,0.00013863,2]
[353117902,1739566272800,-1152.88,0.00013863,2]
[353117903,1739566272811,-1705.16,0.00013863,2]
[353117904,1739566272821,-500.0,0.00013863,2]
[353117905,1739566272830,-1236.6,0.00013863,2]
[353117906,1739566272840,-4024.19,0.00013863,2]
[353117907,1739566272851,-727.92,0.00013863,2]
[353117908,1739566272860,-1661.4,0.00013863,2]
[353117909,1739566272870,-150.0,0.00013864,2]
[353117910,1739566272880,-248691.44923556,0.0001388,2]
[353117911,1739566272890,-197.95,0.00013889,2]
[353117912,1739566272900,-150.0,0.00013891,2]
[353117913,1739566272910,-336.06707169,0.000139,2]
[353117914,1739566272920,-762.49,0.00013916,2]
[353117915,1739566272930,-1453.96540155,0.00013927,2]
[353117916,1739566272940,-621.67,0.00013944,2]
[353117917,1739566272950,-621.67,0.00013944,2]
[353117918,1739566272960,-6128.58,0.00013944,2]
[353117919,1739566272970,-6128.58,0.00013944,2]
[353117920,1739566272979,-874.968359,0.00013945,2]
[353117921,1739566272989,-851.952662,0.00013945,2]
[353117922,1739566272999,-155.533794,0.00013945,2]
[353117923,1739566273009,-500.0,0.00013945,2]
[353117924,1739566273018,-500.0,0.00013945,2]
[353117925,1739566273028,-500.0,0.00013945,2]
[353117926,1739566273038,-500.0,0.00013945,2]
[353117927,1739566273047,-500.0,0.00013945,2]
[353117928,1739566273057,-500.0,0.00013945,2]
[353117929,1739566273067,-500.0,0.00013945,2]
[353117930,1739566273077,-500.0,0.00013945,2]
[353117931,1739566273086,-500.0,0.00013945,2]
[353117932,1739566273096,-536.18,0.00013945,2]
[353117933,1739566273106,-500.0,0.00013945,2]
[353117934,1739566273115,-500.0,0.00013945,2]
[353117935,1739566273126,-500.0,0.00013945,2]
[353117936,1739566273136,-500.0,0.00013945,2]
[353117937,1739566273146,-503.69,0.00013945,2]
[353117938,1739566273156,-500.0,0.00013945,2]
[353117939,1739566273165,-500.0,0.00013945,2]
[353117940,1739566273175,-500.0,0.00013945,2]
[353117941,1739566273185,-500.0,0.00013945,2]
[353117942,1739566273194,-500.0,0.00013945,2]
[353117943,1739566273208,-506.51,0.00013945,2]
[353117944,1739566273217,-500.0,0.00013945,2]
[353117945,1739566273228,-500.0,0.00013945,2]
[353117946,1739566273237,-500.0,0.00013945,2]
[353117947,1739566273248,-500.0,0.00013945,2]
[353117948,1739566273257,-500.0,0.00013945,2]
[353117949,1739566273268,-502.47140267,0.00013945,2]
[353117950,1739566273277,-558.31,0.00013945,2]
[353117951,1739566273288,-500.0,0.00013945,2]
[353117952,1739566273299,-500.0,0.00013945,2]
[353117953,1739566273310,-519.27,0.00013945,2]
[353117954,1739566273319,-252.27326726,0.00013945,2]
[353117955,1739566273329,-227.24465318,0.00013945,2]
[353117956,1739566273338,-500.0,0.00013945,2]
[353117957,1739566273348,-500.0,0.00013945,2]
[353117958,1739566273357,-500.0,0.00013945,2]
[353117959,1739566273366,-500.0,0.00013945,2]
[353117960,1739566273376,-500.0,0.00013945,2]
[353117961,1739566273386,-1200.0,0.00013945,2]
[353117962,1739566273395,-512.74,0.00013945,2]
[353117963,1739566273404,-500.0,0.00013945,2]
[353117964,1739566273414,-757.95,0.00013945,2]
[353117965,1739566273423,-500.0,0.00013945,2]
[353117966,1739566273433,-565.76,0.00013945,2]
[353117967,1739566273442,-500.0,0.00013945,2]
[353117968,1739566273451,-500.0,0.00013945,2]
[353117969,1739566273461,-500.0,0.00013945,2]
[353117970,1739566273471,-500.0,0.00013945,2]
[353117971,1739566273480,-500.0,0.00013945,2]
[353117972,1739566273490,-1107.64,0.00013945,2]
[353117973,1739566273500,-500.0,0.00013945,2]
[353117974,1739566273509,-500.0,0.00013945,2]
[353117975,1739566273519,-500.0,0.00013945,2]
[353117976,1739566273529,-500.0,0.00013945,2]
[353117977,1739566273539,-500.0,0.00013945,2]
[353117978,1739566273548,-500.0,0.00013945,2]
[353117979,1739566273559,-536.38,0.00013945,2]
[353117980,1739566273570,-500.0,0.00013945,2]
[353117981,1739566273580,-500.0,0.00013945,2]
[353117982,1739566273590,-500.0,0.00013945,2]
[353117983,1739566273600,-617.81,0.00013945,2]
[353117984,1739566273610,-500.0,0.00013945,2]
[353117985,1739566273619,-587.28,0.00013945,2]
[353117986,1739566273629,-500.0,0.00013945,2]
[353117987,1739566273639,-750.15,0.00013945,2]
[353117988,1739566273649,-500.0,0.00013945,2]
[353117989,1739566273658,-2392.8,0.00013945,2]
[353117990,1739566273668,-591.54,0.00013945,2]
[353117991,1739566273677,-500.0,0.00013945,2]
[353117992,1739566273687,-500.0,0.00013945,2]
[353117993,1739566273697,-500.0,0.00013945,2]
[353117994,1739566273707,-583.03,0.00013945,2]
[353117995,1739566273717,-1274.03,0.00013945,2]
[353117996,1739566273727,-500.0,0.00013945,2]
[353117997,1739566273736,-500.0,0.00013945,2]
[353117998,1739566273747,-500.0,0.00013945,2]
[353117999,1739566273757,-800.51,0.00013945,2]
[353118000,1739566273766,-1788.5,0.00013945,2]
[353118001,1739566273777,-500.0,0.00013945,2]
[353118002,1739566273787,-500.0,0.00013945,2]
[353118003,1739566273796,-500.0,0.00013945,2]
[353118004,1739566273807,-1330.5,0.00013945,2]
[353118005,1739566273818,-500.0,0.00013945,2]
[353118006,1739566273828,-500.0,0.00013945,2]
[353118007,1739566273838,-500.0,0.00013945,2]
[353118008,1739566273847,-740.69,0.00013945,2]
[353118009,1739566273857,-500.0,0.00013945,2]
[353118010,1739566273867,-1124.22,0.00013945,2]
[353118011,1739566273877,-518.34757533,0.00013945,2]
[353118012,1739566273887,-500.0,0.00013945,2]
[353118013,1739566273897,-500.0,0.00013945,2]
[353118014,1739566273907,-500.0,0.00013945,2]
[353118015,1739566273917,-500.0,0.00013945,2]
[353118016,1739566273927,-569.68,0.00013945,2]
[353118017,1739566273938,-500.0,0.00013945,2]
[353118018,1739566273947,-500.0,0.00013945,2]
[353118019,1739566273957,-500.0,0.00013945,2]
[353118020,1739566273967,-574.84133978,0.00013945,2]
[353118021,1739566273976,-783.23,0.00013945,2]
[353118022,1739566273986,-1019.53,0.00013945,2]
[353118023,1739566273996,-500.0,0.00013945,2]
[353118024,1739566274006,-1273.67,0.00013945,2]
[353118025,1739566274016,-500.0,0.00013945,2]
[353118026,1739566274026,-719.23,0.00013945,2]
[353118027,1739566274035,-1340.4,0.00013945,2]
[353118028,1739566274045,-500.0,0.00013945,2]
[353118029,1739566274055,-151.0,0.00013945,2]
[353118030,1739566274065,-151.0,0.00013945,2]
[353118031,1739566274074,-912.68,0.00013945,2]
[353118032,1739566274084,-892.96,0.00013945,2]
[353118033,1739566274093,-500.0,0.00013945,2]
[353118034,1739566274103,-500.0,0.00013945,2]
[353118035,1739566274113,-1331.32,0.00013945,2]
[353118036,1739566274123,-564.14,0.00013945,2]
[353118037,1739566274133,-558.34,0.00013945,2]
[353118038,1739566274143,-500.0,0.00013945,2]
[353118039,1739566274154,-500.0,0.00013945,2]
[353118040,1739566274164,-500.0,0.00013945,2]
[353118041,1739566274174,-513.62,0.00013945,2]
[353118042,1739566274184,-500.0,0.00013945,2]
[353118043,1739566274200,-678.74,0.00013945,2]
[353118044,1739566274212,-438.75324372,0.00013945,2]
[353118045,1739566274222,-583.73,0.00013945,2]
[353118046,1739566274232,-1406.71,0.00013945,2]
[353118047,1739566274243,-500.0,0.00013945,2]
[353118048,1739566274252,-964.12,0.00013945,2]
[353118049,1739566274262,-793.22,0.00013945,2]
[353118050,1739566274272,-500.0,0.00013945,2]
[353118051,1739566274282,-1085.56,0.00013945,2]
[353118052,1739566274293,-500.0,0.00013945,2]
[353118053,1739566274304,-541.36,0.00013945,2]
[353118054,1739566274314,-667.26,0.00013945,2]
[353118055,1739566274324,-500.0,0.00013945,2]
[353118056,1739566274334,-673.36,0.00013945,2]
[353118057,1739566274345,-500.0,0.00013945,2]
[353118058,1739566274355,-1082.27,0.00013945,2]
[353118059,1739566274364,-500.0,0.00013945,2]
[353118060,1739566274373,-500.0,0.00013945,2]
[353118061,1739566274383,-533.8,0.00013945,2]
[353118062,1739566274392,-500.0,0.00013945,2]
[353118063,1739566274402,-735.54,0.00013945,2]
[353118064,1739566274412,-669.31,0.00013945,2]
[353118065,1739566274422,-500.0,0.00013945,2]
[353118066,1739566274431,-500.0,0.00013945,2]
[353118067,1739566274441,-500.0,0.00013945,2]
[353118068,1739566274450,-883.81,0.00013945,2]
[353118069,1739566274460,-509.83471354,0.00013945,2]
[353118070,1739566274470,-500.0,0.00013945,2]
[353118071,1739566274479,-500.0,0.00013945,2]
[353118072,1739566274489,-1107.54,0.00013945,2]
[353118073,1739566274500,-1293.24,0.00013945,2]
[353118074,1739566274509,-925.37,0.00013945,2]
[353118075,1739566274520,-757.13,0.00013945,2]
[353118076,1739566274530,-500.0,0.00013945,2]
[353118077,1739566274540,-500.0,0.00013945,2]
[353118078,1739566274550,-868.29,0.00013945,2]
[353118079,1739566274561,-500.0,0.00013945,2]
[353118080,1739566274571,-500.0,0.00013945,2]
[353118081,1739566274581,-653.19,0.00013945,2]
[353118082,1739566274591,-534.17,0.00013945,2]
[353118083,1739566274601,-500.0,0.00013945,2]
[353118084,1739566274611,-631.96,0.00013945,2]
[353118085,1739566274620,-500.0,0.00013945,2]
[353118086,1739566274629,-323.11627801,0.00013945,2]
[353118087,1739566274638,-818.28,0.00013945,2]
[353118088,1739566274648,-694.26,0.00013945,2]
[353118089,1739566274658,-500.0,0.00013945,2]
[353118090,1739566274668,-898.94,0.00013945,2]
[353118091,1739566274678,-897.15,0.00013945,2]
[353118092,1739566274688,-500.0,0.00013945,2]
[353118093,1739566274697,-500.0,0.00013945,2]
[353118094,1739566274707,-500.0,0.00013945,2]
[353118095,1739566274718,-621.48,0.00013945,2]
[353118096,1739566274728,-500.0,0.00013945,2]
[353118097,1739566274738,-738.99,0.00013945,2]
[353118098,1739566274748,-500.0,0.00013945,2]
[353118099,1739566274757,-500.0,0.00013945,2]
[353118100,1739566274767,-551.59,0.00013945,2]
[353118101,1739566274777,-1738.29,0.00013945,2]
[353118102,1739566274787,-537.31,0.00013945,2]
[353118103,1739566274797,-500.0,0.00013945,2]
[353118104,1739566274807,-644.46,0.00013945,2]
[353118105,1739566274817,-500.0,0.00013945,2]
[353118106,1739566274827,-681.31,0.00013945,2]
[353118107,1739566274837,-500.0,0.00013945,2]
[353118108,1739566274847,-518.76,0.00013945,2]
[353118109,1739566274856,-500.0,0.00013945,2]
[353118110,1739566274866,-500.0,0.00013945,2]
[353118111,1739566274876,-500.0,0.00013945,2]
[353118112,1739566274886,-1083.31,0.00013945,2]
[353118113,1739566274897,-500.0,0.00013945,2]
[353118114,1739566274907,-500.0,0.00013945,2]
[353118115,1739566274918,-502.76,0.00013945,2]
[353118116,1739566274928,-508.01,0.00013945,2]
[353118117,1739566274937,-1023.77,0.00013945,2]
[353118118,1739566274947,-500.0,0.00013945,2]
[353118119,1739566274957,-573.89,0.00013945,2]
[353118120,1739566274967,-583.21959265,0.00013945,2]
[353118121,1739566274978,-500.0,0.00013945,2]
[353118122,1739566274987,-500.0,0.00013945,2]
[353118123,1739566274998,-927.77,0.00013945,2]
[353118124,1739566275007,-500.0,0.00013945,2]
[353118125,1739566275017,-616.63,0.00013945,2]
[353118126,1739566275027,-500.0,0.00013945,2]
[353118127,1739566275037,-500.0,0.00013945,2]
[353118128,1739566275046,-500.0,0.00013945,2]
[353118129,1739566275055,-1426.12,0.00013945,2]
[353118130,1739566275066,-1153.11,0.00013945,2]
[353118131,1739566275076,-626.41,0.00013945,2]
[353118132,1739566275086,-500.0,0.00013945,2]
[353118133,1739566275096,-1100.39,0.00013945,2]
[353118134,1739566275106,-675.34,0.00013945,2]
[353118135,1739566275115,-583.6,0.00013945,2]
[353118136,1739566275125,-966.1,0.00013945,2]
[353118137,1739566275134,-500.0,0.00013945,2]
[353118138,1739566275144,-500.0,0.00013945,2]
[353118139,1739566275154,-500.0,0.00013945,2]
[353118140,1739566275165,-942.55,0.00013945,2]
[353118141,1739566275175,-500.0,0.00013945,2]
[353118142,1739566275186,-500.0,0.00013945,2]
[353118143,1739566275201,-1213.1,0.00013945,2]
[353118144,1739566275211,-500.0,0.00013945,2]
[353118145,1739566275222,-863.9,0.00013945,2]
[353118146,1739566275233,-500.0,0.00013945,2]
[353118147,1739566275248,-500.0,0.00013945,2]
[353118148,1739566275258,-500.0,0.00013945,2]
[353118149,1739566275267,-151.0,0.00013945,2]
[353118150,1739566275277,-500.0,0.00013945,2]
[353118151,1739566275288,-853.01,0.00013945,2]
[353118152,1739566275297,-507.29,0.00013945,2]
[353118153,1739566275307,-500.0,0.00013945,2]
[353118154,1739566275317,-850.74,0.00013945,2]
[353118155,1739566275327,-205.80324334,0.00013945,2]
[353118156,1739566275337,-674.85,0.00013945,2]
[353118157,1739566275347,-1067.49,0.00013945,2]
[353118158,1739566275357,-614.03,0.00013945,2]
[353118159,1739566275366,-953.81,0.00013945,2]
[353118160,1739566275376,-936.1,0.00013945,2]
[353118161,1739566275386,-704.52,0.00013945,2]
[353118162,1739566275395,-151.0,0.00013945,2]
[353118163,1739566275405,-500.0,0.00013945,2]
[353118164,1739566275414,-1852.67,0.00013945,2]
[353118165,1739566275424,-500.0,0.00013945,2]
[353118166,1739566275434,-597.11,0.00013945,2]
[353118167,1739566275453,-2467.3,0.00013945,2]
[353118168,1739566275467,-2316.56,0.00013945,2]
[353118169,1739566275478,-500.0,0.00013945,2]
[353118170,1739566275489,-500.0,0.00013945,2]
[353118171,1739566275499,-842.17,0.00013945,2]
[353118172,1739566275511,-500.0,0.00013945,2]
[353118173,1739566275522,-500.0,0.00013945,2]
[353118174,1739566275532,-500.0,0.00013945,2]
[353118175,1739566275543,-2018.88,0.00013945,2]
[353118176,1739566275553,-1346.43,0.00013945,2]
[353118177,1739566275565,-931.73,0.00013945,2]
[353118178,1739566275576,-500.0,0.00013945,2]
[353118179,1739566275587,-654.79,0.00013945,2]
[353118180,1739566275597,-592.75,0.00013945,2]
[353118181,1739566275608,-1316.77,0.00013945,2]
[353118182,1739566275618,-500.0,0.00013945,2]
[353118183,1739566275629,-500.0,0.00013945,2]
[353118184,1739566275639,-1311.38,0.00013945,2]
[353118185,1739566275650,-1927.46,0.00013945,2]
[353118186,1739566275660,-500.0,0.00013945,2]
[353118187,1739566275675,-1226.1,0.00013945,2]
[353118188,1739566275686,-1497.33,0.00013945,2]
[353118189,1739566275697,-500.0,0.00013945,2]
[353118190,1739566275707,-1983.45,0.00013945,2]
[353118191,1739566275718,-1529.01,0.00013945,2]
[353118192,1739566275729,-2406.51,0.00013945,2]
[353118193,1739566275739,-670.85,0.00013945,2]
[353118194,1739566275749,-503.07,0.00013945,2]
[353118195,1739566275760,-514.11,0.00013945,2]
[353118196,1739566275771,-701.6,0.00013945,2]
[353118197,1739566275782,-1219.04,0.00013945,2]
[353118198,1739566275793,-2433.16,0.00013945,2]
[353118199,1739566275803,-1086.21,0.00013945,2]
[353118200,1739566275814,-1332.76,0.00013945,2]
[353118201,1739566275824,-500.0,0.00013945,2]
[353118202,1739566275834,-500.0,0.00013945,2]
[353118203,1739566275845,-1041.19,0.00013945,2]
[353118204,1739566275855,-500.0,0.00013945,2]
[353118205,1739566275866,-500.0,0.00013945,2]
[353118206,1739566275877,-1357.25,0.00013945,2]
[353118207,1739566275887,-1158.9,0.00013945,2]
[353118208,1739566275898,-1814.98,0.00013945,2]
[353118209,1739566275908,-3315.84,0.00013945,2]
[353118210,1739566275918,-500.0,0.00013945,2]
[353118211,1739566275929,-1092.63,0.00013945,2]
[353118212,1739566275939,-1307.26,0.00013945,2]
[353118213,1739566275957,-1239.09,0.00013945,2]
[353118214,1739566275968,-1164.5,0.00013945,2]
[353118215,1739566275979,-1608.88,0.00013945,2]
[353118216,1739566275990,-500.0,0.00013945,2]
[353118217,1739566276001,-500.0,0.00013945,2]
[353118218,1739566276012,-1805.89,0.00013945,2]
[353118219,1739566276024,-2219.87,0.00013945,2]
[353118220,1739566276035,-1235.55,0.00013945,2]
[353118221,1739566276046,-604.24,0.00013945,2]
[353118222,1739566276057,-1082.39,0.00013945,2]
[353118223,1739566276068,-2116.85,0.00013945,2]
[353118224,1739566276079,-500.0,0.00013945,2]
[353118225,1739566276090,-500.0,0.00013945,2]
[353118226,1739566276102,-602.2191139,0.00013945,2]
[353118227,1739566276113,-661.33,0.00013945,2]
[353118228,1739566276124,-2112.18,0.00013945,2]
[353118229,1739566276136,-500.0,0.00013945,2]
[353118230,1739566276147,-1558.85,0.00013945,2]
[353118231,1739566276159,-500.0,0.00013945,2]
[353118232,1739566276171,-1872.0,0.00013945,2]
[353118233,1739566276182,-1157.73,0.00013945,2]
[353118234,1739566276194,-500.0,0.00013945,2]
[353118235,1739566276207,-699.76,0.00013945,2]
[353118236,1739566276218,-2970.66,0.00013945,2]
[353118237,1739566276229,-500.0,0.00013945,2]
[353118238,1739566276239,-508.25,0.00013945,2]
[353118239,1739566276250,-500.0,0.00013945,2]
[353118240,1739566276261,-586.78,0.00013945,2]
[353118241,1739566276271,-500.0,0.00013945,2]
[353118242,1739566276283,-929.92,0.00013945,2]
[353118243,1739566276295,-635.89,0.00013945,2]
[353118244,1739566276305,-500.0,0.00013945,2]
[353118245,1739566276316,-2913.77,0.00013945,2]
[353118246,1739566276327,-500.0,0.00013945,2]
[353118247,1739566276338,-475.25796285,0.00013945,2]
[353118248,1739566276348,-500.0,0.00013945,2]
[353118249,1739566276359,-4186.79,0.00013945,2]
[353118250,1739566276369,-902.65,0.00013945,2]
[353118251,1739566276379,-1399.17,0.00013945,2]
[353118252,1739566276390,-2196.62,0.00013945,2]
[353118253,1739566276400,-500.0,0.00013945,2]
[353118254,1739566276411,-500.0,0.00013945,2]
[353118255,1739566276420,-2628.96,0.00013945,2]
[353118256,1739566276431,-1928.84,0.00013945,2]
[353118257,1739566276442,-1158.56,0.00013945,2]
[353118258,1739566276452,-500.0,0.00013945,2]
[353118259,1739566276468,-1153.76,0.00013945,2]
[353118260,1739566276479,-1479.96,0.00013945,2]
[353118261,1739566276490,-739.42,0.00013945,2]
[353118262,1739566276501,-500.0,0.00013945,2]
[353118263,1739566276512,-1028.48,0.00013945,2]
[353118264,1739566276523,-1597.62,0.00013945,2]
[353118265,1739566276533,-500.0,0.00013945,2]
[353118266,1739566276544,-1906.43,0.00013945,2]
[353118267,1739566276556,-3241.0,0.00013945,2]
[353118268,1739566276567,-151.0,0.00013945,2]
[353118269,1739566276578,-816.33,0.00013945,2]
[353118270,1739566276589,-500.0,0.00013945,2]
[353118271,1739566276600,-849.22,0.00013945,2]
[353118272,1739566276612,-1191.81,0.00013945,2]
[353118273,1739566276623,-1332.32,0.00013945,2]
[353118274,1739566276634,-939.58,0.00013945,2]
[353118275,1739566276645,-527.13,0.00013945,2]
[353118276,1739566276656,-500.0,0.00013945,2]
[353118277,1739566276667,-1257.55,0.00013945,2]
[353118278,1739566276679,-2807.42,0.00013945,2]
[353118279,1739566276690,-1704.06,0.00013945,2]
[353118280,1739566276701,-500.0,0.00013945,2]
[353118281,1739566276712,-2998.46,0.00013945,2]
[353118282,1739566276723,-556.02,0.00013945,2]
[353118283,1739566276734,-500.0,0.00013945,2]
[353118284,1739566276746,-2289.6,0.00013945,2]
[353118285,1739566276757,-712.61,0.00013945,2]
[353118286,1739566276768,-1979.01,0.00013945,2]
[353118287,1739566276779,-1375.26,0.00013945,2]
[353118288,1739566276790,-2871.06,0.00013945,2]
[353118289,1739566276800,-3197.44,0.00013945,2]
[353118290,1739566276812,-1256.84,0.00013945,2]
[353118291,1739566276822,-500.0,0.00013945,2]
[353118292,1739566276833,-615.54,0.00013945,2]
[353118293,1739566276843,-500.0,0.00013945,2]
[353118294,1739566276854,-808.016187,0.00013945,2]
[353118295,1739566276865,-500.0,0.00013945,2]
[353118296,1739566276875,-500.0,0.00013945,2]
[353118297,1739566276886,-808.016187,0.00013945,2]
[353118298,1739566276898,-500.0,0.00013945,2]
[353118299,1739566276908,-1995.79,0.00013945,2]
[353118300,1739566276920,-1359.06,0.00013945,2]
[353118301,1739566276931,-2330.96,0.00013945,2]
[353118302,1739566276942,-500.0,0.00013945,2]
[353118303,1739566276958,-10858.08,0.00013945,2]
[353118304,1739566276968,-907.98,0.00013945,2]
[353118305,1739566276979,-500.0,0.00013945,2]
[353118306,1739566276990,-500.0,0.00013945,2]
[353118307,1739566277000,-511.06005131,0.00013945,2]
[353118308,1739566277011,-729.91,0.00013945,2]
[353118309,1739566277022,-531.25,0.00013945,2]
[353118310,1739566277032,-500.0,0.00013945,2]
[353118311,1739566277043,-524.39,0.00013945,2]
[353118312,1739566277054,-1278.12,0.00013945,2]
[353118313,1739566277066,-534.03,0.00013945,2]
[353118314,1739566277077,-925.72,0.00013945,2]
[353118315,1739566277088,-2822.56,0.00013945,2]
[353118316,1739566277099,-1717.5,0.00013945,2]
[353118317,1739566277109,-2435.86,0.00013945,2]
[353118318,1739566277120,-500.0,0.00013945,2]
[353118319,1739566277131,-500.0,0.00013945,2]
[353118320,1739566277142,-500.0,0.00013945,2]
[353118321,1739566277152,-1647.15,0.00013945,2]
[353118322,1739566277163,-760.05,0.00013945,2]
[353118323,1739566277174,-2378.56,0.00013945,2]
[353118324,1739566277185,-500.0,0.00013945,2]
[353118325,1739566277197,-2543.87,0.00013945,2]
[353118326,1739566277212,-1674.92,0.00013945,2]
[353118327,1739566277223,-2943.72,0.00013945,2]
[353118328,1739566277234,-500.0,0.00013945,2]
[353118329,1739566277247,-605.91,0.00013945,2]
[353118330,1739566277258,-655.62,0.00013945,2]
[353118331,1739566277268,-500.0,0.00013945,2]
[353118332,1739566277279,-500.0,0.00013945,2]
[353118333,1739566277290,-500.0,0.00013945,2]
[353118334,1739566277300,-541.9015636,0.00013945,2]